bitfinex/quotes_BTCUSD_20240823
["timestamp","ask_amount","ask_price","bid_price","bid_amount"]
[1724387656839,1.58291546,60818.0,60817.0,1.21371955]
[1724387657040,1.58491546,60818.0,60817.0,1.15291955]
[1724387657685,1.58336267,60818.0,60817.0,1.15291955]
[1724387658316,1.58336267,60818.0,60817.0,1.07421955]
[1724387662758,1.91221267,60818.0,60817.0,1.07421955]
[1724387662978,1.91221267,60818.0,60817.0,1.0632823]
[1724387663189,1.91221267,60818.0,60817.0,1.07361132]
[1724387664097,1.58336267,60818.0,60817.0,1.07361132]
[1724387664310,1.91221267,60818.0,60817.0,1.07361132]
[1724387665163,1.58336267,60818.0,60817.0,1.07361132]
[1724387666774,1.58336267,60818.0,60817.0,1.1440823]
[1724387666993,1.58336267,60818.0,60817.0,1.15441132]
[1724387667215,1.91043058,60818.0,60817.0,1.15441132]
[1724387667451,1.58158058,60818.0,60817.0,1.15441132]
[1724387671824,1.91043058,60818.0,60817.0,1.07361132]
[1724387672041,1.91038873,60818.0,60817.0,1.07361132]
[1724387672269,1.9103854,60818.0,60817.0,1.07361132]
[1724387674070,2.0051854,60818.0,60817.0,1.07361132]
[1724387674295,1.9711854,60818.0,60817.0,1.07361132]
[1724387674751,1.9103854,60818.0,60817.0,1.07361132]
[1724387677066,1.91120201,60818.0,60817.0,1.07361132]
[1724387677732,1.91120201,60818.0,60817.0,1.06312683]
[1724387677980,1.91120201,60818.0,60816.0,0.0009053]
[1724387677981,1.155992,60817.0,60816.0,0.0009053]
[1724387678202,2.2282409,60817.0,60816.0,0.0009053]
[1724387678413,2.39221968,60817.0,60816.0,0.0009053]
[1724387679532,2.06336468,60817.0,60816.0,0.0009053]
[1724387679961,2.06436468,60817.0,60816.0,0.0019053]
[1724387680179,1.9143859,60817.0,60816.0,0.0029053]
[1724387680857,1.81379,60814.0,60813.0,0.0009053]
[1724387681079,1.81379,60814.0,60806.0,0.0609]
[1724387681080,0.498356,60808.0,60806.0,0.1396]
[1724387681308,0.76235898,60808.0,60806.0,0.1396]
[1724387681746,1.77486538,60808.0,60806.0,0.1396]
[1724387683286,1.78286538,60808.0,60807.0,0.00115375]
[1724387684131,1.79186538,60808.0,60807.0,0.00215375]
[1724387684421,1.95584416,60808.0,60807.0,0.00215375]
[1724387685917,1.9626367,60808.0,60807.0,0.00215375]
[1724387687860,2.00727556,60808.0,60807.0,0.00215375]
[1724387691031,2.17364784,60808.0,60807.0,0.00215375]
[1724387691249,2.17342302,60808.0,60807.0,0.00215375]
[1724387691464,2.15642302,60808.0,60807.0,0.00015375]
[1724387691679,2.17042302,60808.0,60807.0,0.00115375]
[1724387691927,2.18242302,60808.0,60807.0,0.00215375]
[1724387692805,2.00614476,60808.0,60807.0,0.00215375]
[1724387693018,1.84216598,60808.0,60807.0,0.00215375]
[1724387695955,1.84213166,60808.0,60807.0,0.00215375]
[1724387696204,2.17103566,60808.0,60807.0,0.00305905]
[1724387696434,2.50123722,60808.0,60807.0,0.00305905]
[1724387696663,2.33501444,60808.0,60807.0,0.00305905]
[1724387698556,2.17103566,60808.0,60807.0,0.00305905]
[1724387700705,2.17000021,60808.0,60807.0,0.00305905]
[1724387701173,1.84109621,60808.0,60807.0,0.00305905]
[1724387704078,2.00731308,60808.0,60807.0,0.00305905]
[1724387706419,2.00731308,60808.0,60807.0,0.08575905]
[1724387706636,1.84109621,60808.0,60807.0,0.08570276]
[1724387707477,2.00731308,60808.0,60807.0,0.08570276]
[1724387707688,1.84109621,60808.0,60807.0,0.08570276]
[1724387708536,1.84191921,60808.0,60807.0,0.08570276]
[1724387709827,1.92686928,60808.0,60807.0,0.08570276]
[1724387712197,1.92686928,60808.0,60807.0,0.14790276]
[1724387712198,1.84191921,60808.0,60807.0,0.14790276]
[1724387712407,1.92074495,60808.0,60807.0,0.14790276]
[1724387713288,1.92339738,60808.0,60807.0,0.14790276]
[1724387714133,2.08973135,60808.0,60807.0,0.14790276]
[1724387715415,1.92339738,60808.0,60807.0,0.14790276]
[1724387715625,2.08737616,60808.0,60807.0,0.08570276]
[1724387715825,1.48014,60805.0,60804.0,0.0635]
[1724387716033,1.86905944,60805.0,60804.0,0.0635]
[1724387716244,2.03544422,60805.0,60804.0,0.0635]
[1724387717089,2.04944422,60805.0,60804.0,0.0645]
[1724387717735,2.06344422,60805.0,60804.0,0.0645]
[1724387718155,1.89705944,60805.0,60804.0,0.0645]
[1724387718807,1.89705944,60805.0,60804.0,0.1424]
[1724387719018,2.05039849,60805.0,60804.0,0.1424]
[1724387720953,2.05039849,60805.0,60804.0,0.1433053]
[1724387722038,2.05039849,60805.0,60804.0,0.0798053]
[1724387726300,2.1731154,60805.0,60804.0,0.0798053]
[1724387726519,2.05039849,60805.0,60804.0,0.0798053]
[1724387732423,2.04817368,60805.0,60804.0,0.0798053]
[1724387734133,1.96934794,60805.0,60804.0,0.0798053]
[1724387734362,2.04817368,60805.0,60804.0,0.0798053]
[1724387736526,2.17089059,60805.0,60804.0,0.0798053]
[1724387746522,2.17102457,60805.0,60804.0,0.0798053]
[1724387751487,2.1713104,60805.0,60804.0,0.0798053]
[1724387756435,2.41444939,60805.0,60804.0,0.0798053]
[1724387761608,2.1713104,60805.0,60804.0,0.0798053]
[1724387764159,2.17132729,60805.0,60804.0,0.1444053]
[1724387766802,2.01759237,60805.0,60804.0,0.1444053]
[1724387769543,2.01789153,60805.0,60804.0,0.1444053]
[1724387770833,2.26118431,60805.0,60804.0,0.1444053]
[1724387772132,1.85343857,60805.0,60804.0,0.1444053]
[1724387772352,1.28122579,60805.0,60804.0,0.1444053]
[1724387772567,0.72958888,60805.0,60804.0,0.1444053]
[1724387773050,0.40066888,60805.0,60804.0,0.1444053]
[1724387773266,0.72958888,60805.0,60804.0,0.1444053]
[1724387773478,0.73204693,60805.0,60804.0,0.1444053]
[1724387773693,0.71804693,60805.0,60804.0,0.1434053]
[1724387773919,0.70404693,60805.0,60804.0,0.1434053]
[1724387774135,0.70404693,60805.0,60804.0,0.14536062]
[1724387774136,0.81704693,60805.0,60804.0,0.14536062]
[1724387774367,0.81704693,60805.0,60804.0,0.1444053]
[1724387774368,0.91805978,60805.0,60804.0,0.1444053]
[1724387774571,0.90505978,60805.0,60804.0,0.14436062]
[1724387774783,0.7550568,60805.0,60804.0,0.14436062]
[1724387774986,0.7550568,60805.0,60804.0,0.1444053]
[1724387774987,0.4371368,60805.0,60804.0,0.1444053]
[1724387775427,0.28906413,60805.0,60804.0,0.14536062]
[1724387775935,0.28906413,60805.0,60804.0,0.1444053]
[1724387776143,0.61798413,60805.0,60804.0,0.1444053]
[1724387776350,0.60398413,60805.0,60804.0,0.1444053]
[1724387776970,0.60298413,60805.0,60804.0,0.1444053]
[1724387777215,0.60298413,60805.0,60804.0,0.1434053]
[1724387777216,0.59298413,60805.0,60804.0,0.1434053]
[1724387777423,0.60198413,60805.0,60804.0,0.1444053]
[1724387777630,0.61098413,60805.0,60804.0,0.1454053]
[1724387778048,0.93990413,60805.0,60804.0,0.1454053]
[1724387784411,1.06310852,60805.0,60804.0,0.1454053]
[1724387784604,1.05610852,60805.0,60804.0,0.1454053]
[1724387787821,1.05608679,60805.0,60804.0,0.1454053]
[1724387791974,1.05690979,60805.0,60804.0,0.1454053]
[1724387792399,0.93372713,60805.0,60804.0,0.1454053]
[1724387796442,1.03225826,60805.0,60804.0,0.1454053]
[1724387799513,0.63372713,60805.0,60804.0,0.1454053]
[1724387799927,0.79818713,60805.0,60804.0,0.1454053]
[1724387801794,0.89818713,60805.0,60804.0,0.1454053]
[1724387807498,0.97211032,60805.0,60804.0,0.1454053]
[1724387809487,1.02139245,60805.0,60804.0,0.1454053]
[1724387810939,0.69247245,60805.0,60804.0,0.1454053]
[1724387811101,1.02139245,60805.0,60804.0,0.1454053]
[1724387811314,0.89818713,60805.0,60804.0,0.1454053]
[1724387817487,1.04626759,60805.0,60804.0,0.1454053]
[1724387818311,0.94611332,60805.0,60804.0,0.1454053]
[1724387819510,1.4390363,60805.0,60804.0,0.1454053]
[1724387819718,1.51786204,60805.0,60804.0,0.1454053]
[1724387819896,1.68445256,60805.0,60804.0,0.1454053]
[1724387820108,1.51786204,60805.0,60804.0,0.1454053]
[1724387820525,1.68462908,60805.0,60804.0,0.1454053]
[1724387820743,1.60580334,60805.0,60804.0,0.1454053]
[1724387820958,1.4390363,60805.0,60804.0,0.1454053]
[1724387825295,1.51786204,60805.0,60804.0,0.1454053]
[1724387829336,1.51652337,60805.0,60804.0,0.1454053]
[1724387833045,1.54231797,60805.0,60804.0,0.1454053]
[1724387837333,1.54234296,60805.0,60804.0,0.1454053]
[1724387841325,1.54234296,60805.0,60804.0,0.0029053]
[1724387841571,1.70907057,60805.0,60804.0,0.0029053]
[1724387842291,1.54234296,60805.0,60804.0,0.0029053]
[1724387843587,1.70904265,60805.0,60804.0,0.0029053]
[1724387843819,1.70726332,60805.0,60804.0,0.0029053]
[1724387845773,1.54056434,60805.0,60804.0,0.0029053]
[1724387846278,1.70726332,60805.0,60804.0,0.0029053]
[1724387847467,1.54056434,60805.0,60804.0,0.0029053]
[1724387847715,1.4617386,60805.0,60804.0,0.1451053]
[1724387847956,1.54056434,60805.0,60804.0,0.1451053]
[1724387848408,1.5427002,60805.0,60804.0,0.1451053]
[1724387852846,1.04918765,60805.0,60804.0,0.1451053]
[1724387853198,0.64144191,60805.0,60804.0,0.1451053]
[1724387854228,0.97036191,60805.0,60804.0,0.1451053]
[1724387855937,0.64144191,60805.0,60804.0,0.1451053]
[1724387856605,0.32966318,60805.0,60804.0,0.1451053]
[1724387856954,0.65858318,60805.0,60804.0,0.16162107]
[1724387857923,0.65858318,60805.0,60804.0,0.16257639]
[1724387858295,0.65858318,60805.0,60804.0,0.16162107]
[1724387858693,0.65858318,60805.0,60804.0,0.16257639]
[1724387858947,0.65858318,60805.0,60804.0,0.16162107]
[1724387859136,0.80674194,60805.0,60804.0,0.16257639]
[1724387859353,0.80674194,60805.0,60804.0,0.16162107]
[1724387859787,0.76036176,60805.0,60804.0,0.16162107]
[1724387859994,0.76036176,60805.0,60804.0,0.16257639]
[1724387860411,0.80873716,60805.0,60804.0,0.16257639]
[1724387860823,0.80873716,60805.0,60804.0,0.16453564]
[1724387861235,0.80873716,60805.0,60804.0,0.16257639]
[1724387861447,0.76036176,60805.0,60804.0,0.14606062]
[1724387861847,0.76036176,60805.0,60804.0,0.16256875]
[1724387862005,0.76036176,60805.0,60804.0,0.164528]
[1724387862206,0.26698176,60805.0,60804.0,0.164528]
[1724387862646,0.43144176,60805.0,60804.0,0.164528]
[1724387864050,0.283283,60805.0,60804.0,0.164528]
[1724387868750,0.283283,60805.0,60804.0,0.16161343]
[1724387869196,0.612203,60805.0,60804.0,0.16161343]
[1724387880512,0.612203,60805.0,60804.0,0.16256875]
[1724387880734,0.283283,60805.0,60804.0,0.14606062]
[1724387881559,0.612203,60805.0,60804.0,0.14606062]
[1724387882023,0.118823,60805.0,60804.0,0.14606062]
[1724387882244,0.018823,60805.0,60804.0,0.16585504]
[1724387882448,0.512203,60805.0,60804.0,0.1616108]
[1724387882659,0.612203,60805.0,60804.0,0.1616108]
[1724387884559,0.612203,60805.0,60804.0,0.1451053]
[1724387884772,0.612203,60805.0,60804.0,0.1616108]
[1724387891790,0.612203,60805.0,60804.0,0.16256612]
[1724387892818,0.612203,60805.0,60804.0,0.1616108]
[1724387893858,0.612203,60805.0,60804.0,0.16256612]
[1724387894864,0.612203,60805.0,60804.0,0.16452537]
[1724387895230,0.612203,60805.0,60804.0,0.1616108]
[1724387902406,0.76037729,60805.0,60804.0,0.1616108]
[1724387903630,0.76037729,60805.0,60804.0,0.1451053]
[1724387904232,0.76041445,60805.0,60804.0,0.1451053]
[1724387904433,0.76041836,60805.0,60804.0,0.1451053]
[1724387905099,1.08933836,60805.0,60804.0,0.1451053]
[1724387905507,1.08933836,60805.0,60804.0,0.16146621]
[1724387909214,0.941123,60805.0,60804.0,0.16146621]
[1724387909438,1.08934817,60805.0,60804.0,0.16146621]
[1724387913046,1.08935266,60805.0,60804.0,0.16146621]
[1724387914223,1.08935333,60805.0,60804.0,0.16146621]
[1724387917747,1.08935399,60805.0,60804.0,0.16146621]
[1724387919278,1.08935421,60805.0,60804.0,0.16146621]
[1724387920703,0.98937074,60805.0,60804.0,0.16146621]
[1724387920904,0.98937074,60805.0,60804.0,0.1451053]
[1724387921110,0.98937074,60805.0,60804.0,0.16146892]
[1724387922297,0.98937074,60805.0,60804.0,0.01926892]
[1724387922495,0.98937074,60805.0,60804.0,0.0029053]
[1724387923880,0.98934892,60805.0,60804.0,0.0029053]
[1724387924784,0.98934892,60805.0,60804.0,0.0854053]
[1724387936597,1.42288769,60805.0,60804.0,0.0029053]
[1724387936819,1.64849067,60805.0,60804.0,0.0029053]
[1724387937035,1.97741067,60805.0,60804.0,0.0029053]
[1724387937749,2.02451067,60805.0,60804.0,0.0029053]
[1724387941794,2.01866586,60805.0,60804.0,0.0029053]
[1724387942432,2.18526774,60805.0,60804.0,0.0029053]
[1724387946679,2.1851161,60805.0,60804.0,0.0029053]
[1724387947296,2.01856637,60805.0,60804.0,0.0029053]
[1724387948154,2.1851161,60805.0,60804.0,0.0029053]
[1724387948773,2.1380161,60805.0,60804.0,0.0029053]
[1724387951467,1.97146637,60805.0,60804.0,0.0029053]
[1724387951926,1.90986637,60805.0,60804.0,0.0029053]
[1724387963960,2.01856637,60805.0,60804.0,0.0029053]
[1724387964775,1.97146637,60805.0,60804.0,0.0029053]
[1724387964981,1.90986637,60805.0,60804.0,0.0029053]
[1724387967366,2.0764161,60805.0,60804.0,0.0029053]
[1724387967774,2.24039488,60805.0,60804.0,0.0029053]
[1724387969369,2.34909488,60805.0,60804.0,0.0029053]
[1724387970138,2.24039488,60805.0,60804.0,0.0029053]
[1724387970374,2.0764161,60805.0,60804.0,0.0029053]
[1724387973193,2.07609724,60805.0,60804.0,0.0029053]
[1724387975296,2.07619245,60805.0,60804.0,0.0029053]
[1724387975411,1.90964998,60805.0,60804.0,0.0029053]
[1724387979468,1.90964998,60805.0,60804.0,0.0809053]
[1724387983738,1.90964998,60805.0,60804.0,0.0029053]
[1724387984891,1.90930489,60805.0,60804.0,0.0029053]
[1724387989581,1.90847712,60805.0,60804.0,0.0029053]
[1724387990033,1.90847712,60805.0,60804.0,0.0804053]
[1724387999309,1.90845163,60805.0,60804.0,0.0804053]
[1724388002717,1.90844677,60805.0,60804.0,0.0804053]
[1724388009131,0.16447,60801.0,60800.0,0.0009053]
[1724388009346,1.82306272,60801.0,60800.0,0.0009053]
[1724388009560,1.86392474,60801.0,60800.0,0.0009053]
[1724388010390,1.87592474,60801.0,60800.0,0.0019053]
[1724388010831,1.86392474,60801.0,60800.0,0.0009053]
[1724388011236,1.796099,60801.0,60800.0,0.0815053]
[1724388011501,1.87492474,60801.0,60800.0,0.0815053]
[1724388011713,1.86792474,60801.0,60800.0,0.0805053]
[1724388012138,1.86112012,60801.0,60800.0,0.0805053]
[1724388012376,1.87512012,60801.0,60800.0,0.0805053]
[1724388012597,1.86112012,60801.0,60800.0,0.0805053]
[1724388013048,1.88912012,60801.0,60800.0,0.0805053]
[1724388013724,1.87512012,60801.0,60800.0,0.0805053]
[1724388013946,1.88912012,60801.0,60800.0,0.0805053]
[1724388014361,1.896049,60801.0,60800.0,0.0805053]
[1724388016342,1.94928845,60801.0,60800.0,0.0805053]
[1724388016850,1.9218462,60801.0,60800.0,0.0805053]
[1724388017073,1.51407946,60801.0,60800.0,0.0805053]
[1724388017284,1.5929052,60801.0,60800.0,0.1446053]
[1724388021507,1.59367488,60801.0,60800.0,0.1446053]
[1724388030814,1.593279,60801.0,60800.0,0.1446053]
[1724388035942,1.59269765,60801.0,60800.0,0.1446053]
[1724388040781,1.59287335,60801.0,60800.0,0.1446053]
[1724388041770,1.59369635,60801.0,60800.0,0.1446053]
[1724388050281,1.55527492,60801.0,60800.0,0.1446053]
[1724388050504,1.59378497,60801.0,60800.0,0.1446053]
[1724388055072,1.59375141,60801.0,60800.0,0.1446053]
[1724388056213,1.59375141,60801.0,60800.0,0.0009053]
[1724388059728,1.92269241,60801.0,60800.0,0.0009053]
[1724388059952,1.75802006,60801.0,60800.0,0.0009053]
[1724388060156,1.67919432,60801.0,60800.0,0.0009053]
[1724388060356,1.59404128,60801.0,60800.0,0.0009053]
[1724388060782,1.92298228,60801.0,60800.0,0.0009053]
[1724388066254,1.89718508,60801.0,60800.0,0.0009053]
[1724388068218,1.89528404,60801.0,60800.0,0.0009053]
[1724388068410,1.97217394,60801.0,60800.0,0.0009053]
[1724388069212,1.89528404,60801.0,60800.0,0.0009053]
[1724388069635,1.95688404,60801.0,60800.0,0.0009053]
[1724388070017,1.89528404,60801.0,60800.0,0.0009053]
[1724388070224,1.92108214,60801.0,60800.0,0.0009053]
[1724388072769,1.92100155,60801.0,60800.0,0.0009053]
[1724388077587,1.92103262,60801.0,60800.0,0.0009053]
[1724388077782,2.11081191,60801.0,60800.0,0.0009053]
[1724388080816,2.23173969,60801.0,60800.0,0.0009053]
[1724388084923,2.06776091,60801.0,60800.0,0.0009053]
[1724388086299,2.39670191,60801.0,60800.0,0.0009053]
[1724388086542,2.50500191,60801.0,60800.0,0.0009053]
[1724388086713,1.55923074,60794.0,60793.0,0.0814]
[1724388086943,1.86004952,60794.0,60793.0,0.0814]
[1724388087446,1.88584995,60794.0,60793.0,0.0814]
[1724388088066,1.89484995,60794.0,60793.0,0.0814]
[1724388088957,1.90484995,60794.0,60793.0,0.0814]
[1724388090265,2.06882873,60794.0,60793.0,0.0814]
[1724388090560,2.06882873,60794.0,60793.0,0.0823053]
[1724388095457,2.07557728,60794.0,60793.0,0.0823053]
[1724388096507,2.07034927,60794.0,60793.0,0.0823053]
[1724388100712,2.39932827,60794.0,60793.0,0.0823053]
[1724388100918,2.50870005,60794.0,60793.0,0.0823053]
[1724388101344,2.50516142,60794.0,60793.0,0.0823053]
[1724388101550,2.50516142,60794.0,60793.0,0.0009053]
[1724388101724,2.49616142,60794.0,60793.0,0.0009053]
[1724388102109,2.51016142,60794.0,60793.0,0.0009053]
[1724388102308,2.50016142,60794.0,60793.0,0.0009053]
[1724388102705,2.7570299,60794.0,60793.0,0.0009053]
[1724388103439,2.51416142,60794.0,60793.0,0.0009053]
[1724388106067,2.51310783,60794.0,60793.0,0.0009053]
[1724388108659,1.809566,60788.0,60787.0,0.0009053]
[1724388108871,2.10239029,60788.0,60787.0,0.0009053]
[1724388109071,2.20239029,60788.0,60787.0,0.0009053]
[1724388109238,2.31176207,60788.0,60787.0,0.0009053]
[1724388109913,2.32576207,60788.0,60787.0,0.0009053]
[1724388110023,2.48974085,60788.0,60787.0,0.0009053]
[1724388110440,2.41091511,60788.0,60787.0,0.0009053]
[1724388110641,2.40939767,60788.0,60787.0,0.0781053]
[1724388110889,2.48822341,60788.0,60787.0,0.0781053]
[1724388111652,2.50222341,60788.0,60787.0,0.0781053]
[1724388113306,2.50222341,60788.0,60787.0,0.0009053]
[1724388114059,2.50222341,60788.0,60787.0,0.1384053]
[1724388114229,2.50222341,60788.0,60787.0,0.0768053]
[1724388115227,2.47674528,60788.0,60787.0,0.0768053]
[1724388115402,2.50221357,60788.0,60787.0,0.0768053]
[1724388116908,2.50221357,60788.0,60787.0,0.0009053]
[1724388119684,2.54930826,60788.0,60787.0,0.0009053]
[1724388120029,2.54930832,60788.0,60787.0,0.0009053]
[1724388123233,2.50220832,60788.0,60787.0,0.0009053]
[1724388124171,3.12082555,60788.0,60787.0,0.00072425]
[1724388124596,2.87832032,60788.0,60787.0,0.00072425]
[1724388128203,1.885381,60784.0,60783.0,0.0009053]
[1724388128337,2.27667633,60784.0,60783.0,0.0009053]
[1724388128538,2.38604811,60784.0,60783.0,0.0009053]
[1724388129011,2.41185585,60784.0,60783.0,0.0009053]
[1724388129224,2.30248407,60784.0,60783.0,0.0009053]
[1724388129588,2.57519136,60784.0,60783.0,0.0009053]
[1724388131130,2.58919136,60784.0,60783.0,0.0009053]
[1724388132646,2.59597225,60784.0,60783.0,0.0009053]
[1724388132967,2.59597679,60784.0,60783.0,0.0009053]
[1724388135213,2.52027679,60784.0,60783.0,0.0009053]
[1724388137483,2.52027728,60784.0,60783.0,0.0009053]
[1724388138098,2.54608872,60784.0,60783.0,0.00081478]
[1724388138326,2.589398,60784.0,60783.0,0.07691478]
[1724388138656,0.164519,60783.0,60782.0,0.0625053]
[1724388138858,0.164519,60783.0,60671.0,1.16336579]
[1724388138859,0.164541,60775.0,60757.0,0.00291457]
[1724388139240,1.49461572,60775.0,60757.0,0.00291457]
[1724388139456,1.52008736,60775.0,60757.0,0.00291457]
[1724388139659,1.8749789,60775.0,60757.0,0.00291457]
[1724388140077,1.8889789,60775.0,60757.0,0.00291457]
[1724388140695,1.8889789,60775.0,60757.0,0.00095532]
[1724388140904,1.9029789,60775.0,60757.0,0.00291457]
[1724388141085,1.9029789,60775.0,60756.0,0.00291457]
[1724388141845,1.9029789,60775.0,60774.0,0.1432053]
[1724388142043,1.90969846,60775.0,60774.0,0.1432053]
[1724388142315,2.07605142,60775.0,60774.0,0.1432053]
[1724388143576,2.2400302,60775.0,60774.0,0.1432053]
[1724388143795,2.07367724,60775.0,60774.0,0.1432053]
[1724388145683,2.38875924,60775.0,60774.0,0.1432053]
[1724388146203,2.37475924,60775.0,60774.0,0.1432053]
[1724388146430,2.38875924,60775.0,60774.0,0.1432053]
[1724388146602,2.40275924,60775.0,60774.0,0.1432053]
[1724388146806,2.38875924,60775.0,60774.0,0.1432053]
[1724388147350,2.40275924,60775.0,60774.0,0.1432053]
[1724388148774,2.49466832,60775.0,60774.0,0.1432053]
[1724388149162,2.48066832,60775.0,60774.0,0.1432053]
[1724388149520,2.30268954,60775.0,60774.0,0.1432053]
[1724388149725,2.31668954,60775.0,60774.0,0.1432053]
[1724388149941,2.33068954,60775.0,60774.0,0.1432053]
[1724388150707,2.31668954,60775.0,60774.0,0.1432053]
[1724388151127,2.33068954,60775.0,60774.0,0.1432053]
[1724388151713,2.33072019,60775.0,60774.0,0.1432053]
[1724388151920,2.31672019,60775.0,60774.0,0.1432053]
[1724388152324,2.33072019,60775.0,60774.0,0.1432053]
[1724388152578,2.46669897,60775.0,60774.0,0.1432053]
[1724388153007,2.33072019,60775.0,60774.0,0.1432053]
[1724388153688,2.3052179,60775.0,60774.0,0.1432053]
[1724388153826,2.33072546,60775.0,60774.0,0.1432053]
[1724388155671,2.33072546,60775.0,60774.0,0.0767053]
[1724388156918,2.33072546,60775.0,60774.0,0.0009053]
[1724388157139,2.49470424,60775.0,60774.0,0.0009053]
[1724388160222,2.73763346,60775.0,60774.0,0.0009053]
[1724388160471,2.76063346,60775.0,60774.0,0.0009053]
[1724388161352,2.51770424,60775.0,60774.0,0.0009053]
[1724388161720,0.493689,60767.0,60766.0,0.1407]
[1724388161892,1.06564372,60767.0,60766.0,0.1407]
[1724388162034,1.21415128,60767.0,60766.0,0.1407]
[1724388162244,2.20152928,60767.0,60766.0,0.1407]
[1724388162558,1.99012497,60767.0,60766.0,0.1407]
[1724388162784,1.91221589,60767.0,60766.0,0.1407]
[1724388162987,1.92621589,60767.0,60766.0,0.1407]
[1724388164668,1.82439015,60767.0,60766.0,0.1407]
[1724388164840,1.90321589,60767.0,60766.0,0.1407]
[1724388166562,1.91014571,60767.0,60766.0,0.1407]
[1724388167911,1.58101971,60767.0,60766.0,0.1407]
[1724388168115,1.72184967,60767.0,60766.0,0.1407]
[1724388171904,1.72184967,60767.0,60766.0,0.1416053]
[1724388172575,1.5552071,60767.0,60766.0,0.1416053]
[1724388176235,1.58101844,60767.0,60766.0,0.1416053]
[1724388176456,1.5552071,60767.0,60766.0,0.1416053]
[1724388179457,1.58101854,60767.0,60766.0,0.1416053]
[1724388180056,1.58104085,60767.0,60766.0,0.1416053]
[1724388183481,1.58104312,60767.0,60766.0,0.1416053]
[1724388185554,1.88435768,60767.0,60766.0,0.1416053]
[1724388185750,1.55523168,60767.0,60766.0,0.1416053]
[1724388188429,1.88435768,60767.0,60766.0,0.1416053]
[1724388188825,1.91016948,60767.0,60766.0,0.1416053]
[1724388192841,1.58104348,60767.0,60766.0,0.1416053]
[1724388193056,1.58105089,60767.0,60766.0,0.1416053]
[1724388193248,1.91017689,60767.0,60766.0,0.1416053]
[1724388193466,1.58105089,60767.0,60766.0,0.1416053]
[1724388195737,1.58105089,60767.0,60766.0,0.0799053]
[1724388196168,1.91017689,60767.0,60766.0,0.0799053]
[1724388196809,1.58105089,60767.0,60766.0,0.0799053]
[1724388197354,1.58187389,60767.0,60766.0,0.0799053]
[1724388197584,1.91099989,60767.0,60766.0,0.0799053]
[1724388197811,1.91100014,60767.0,60766.0,0.0799053]
[1724388198040,1.58187414,60767.0,60766.0,0.0799053]
[1724388199188,1.58187414,60767.0,60766.0,0.1434053]
[1724388212179,1.58188396,60767.0,60766.0,0.1434053]
[1724388213883,1.55633434,60767.0,60766.0,0.1434053]
[1724388214069,1.58188453,60767.0,60766.0,0.1434053]
[1724388214207,1.60769915,60767.0,60766.0,0.1434053]
[1724388216988,1.60770142,60767.0,60766.0,0.1434053]
[1724388217384,1.52887568,60767.0,60766.0,0.1434053]
[1724388217692,1.60770142,60767.0,60766.0,0.1434053]
[1724388218100,0.87062368,60767.0,60766.0,0.1434053]
[1724388218311,1.44544651,60767.0,60766.0,0.1434053]
[1724388218512,1.27857542,60767.0,60766.0,0.1434053]
[1724388219075,1.26457542,60767.0,60766.0,0.1434053]
[1724388219274,1.27857542,60767.0,60766.0,0.1434053]
[1724388219762,1.26457542,60767.0,60766.0,0.1434053]
[1724388220317,1.27857542,60767.0,60766.0,0.1434053]
[1724388220638,1.26457542,60767.0,60766.0,0.1434053]
[1724388221902,1.27857542,60767.0,60766.0,0.1434053]
[1724388222532,1.40122267,60767.0,60766.0,0.1434053]
[1724388223463,1.25302296,60767.0,60766.0,0.1434053]
[1724388223676,1.58185842,60767.0,60766.0,0.1434053]
[1724388226204,1.58185736,60767.0,60766.0,0.1434053]
[1724388228862,1.50303162,60767.0,60766.0,0.1434053]
[1724388229075,1.58185736,60767.0,60766.0,0.1434053]
[1724388241214,1.55685736,60767.0,60766.0,0.1434053]
[1724388242897,1.47803162,60767.0,60766.0,0.1434053]
[1724388243097,1.55685736,60767.0,60766.0,0.1434053]
[1724388244087,1.55685923,60767.0,60766.0,0.1434053]
[1724388248325,1.54285923,60767.0,60766.0,0.1434053]
[1724388249205,1.52885923,60767.0,60766.0,0.0799053]
[1724388249413,1.54285923,60767.0,60766.0,0.0799053]
[1724388250682,1.55685923,60767.0,60766.0,0.0799053]
[1724388252545,1.53104743,60767.0,60766.0,0.0799053]
[1724388252667,1.55685801,60767.0,60766.0,0.0799053]
[1724388253620,1.5611505,60767.0,60766.0,0.0799053]
[1724388254208,1.5611505,60767.0,60766.0,0.1407053]
[1724388259486,1.72786139,60767.0,60766.0,0.1407053]
[1724388263131,1.53133312,60767.0,60766.0,0.1407053]
[1724388263322,1.72783174,60767.0,60766.0,0.1407053]
[1724388264399,1.56102429,60767.0,60766.0,0.1407053]
[1724388268067,1.5610418,60767.0,60766.0,0.1407053]
[1724388270352,1.5610418,60767.0,60766.0,0.0009053]
[1724388270518,1.6426418,60767.0,60766.0,0.0009053]
[1724388271568,1.5610418,60767.0,60766.0,0.0009053]
[1724388277563,1.56080423,60767.0,60766.0,0.0009053]
[1724388282395,1.56080159,60767.0,60766.0,0.0009053]
[1724388288539,1.56084667,60767.0,60766.0,0.0009053]
[1724388292011,1.56105308,60767.0,60766.0,0.0009053]
[1724388293382,1.48222734,60767.0,60766.0,0.0009053]
[1724388293588,1.56105308,60767.0,60766.0,0.0009053]
[1724388299734,1.63825308,60767.0,60766.0,0.0009053]
[1724388300251,1.56105308,60767.0,60766.0,0.0009053]
[1724388300475,1.56105308,60767.0,60766.0,0.0811053]
[1724388302330,1.56105308,60767.0,60766.0,0.1476053]
[1724388304988,1.5610603,60767.0,60766.0,0.1476053]
[1724388314490,1.56133986,60767.0,60766.0,0.1476053]
[1724388315540,1.48251412,60767.0,60766.0,0.1476053]
[1724388315749,1.15338812,60767.0,60766.0,0.14856062]
[1724388316688,1.15338812,60767.0,60766.0,0.15051987]
[1724388316891,0.17713831,60767.0,60766.0,0.15051987]
[1724388317093,0.179386,60767.0,60766.0,0.15051987]
[1724388317296,0.179386,60767.0,60766.0,0.18514667]
[1724388317504,0.179386,60767.0,60766.0,0.15051987]
[1724388317726,0.193386,60767.0,60766.0,0.18514667]
[1724388317930,0.179386,60767.0,60766.0,0.1822321]
[1724388318154,0.494512,60767.0,60766.0,0.18318742]
[1724388318409,0.621512,60767.0,60766.0,0.1822321]
[1724388318637,0.279386,60767.0,60766.0,0.18514667]
[1724388318851,0.265386,60767.0,60766.0,0.18514667]
[1724388319056,0.286386,60767.0,60766.0,0.18514667]
[1724388319259,0.275386,60767.0,60766.0,0.18514667]
[1724388320299,0.38886269,60767.0,60766.0,0.18514667]
[1724388320819,0.39786269,60767.0,60766.0,0.18514667]
[1724388321217,1.04711469,60767.0,60766.0,0.1822321]
[1724388321413,1.42376698,60767.0,60766.0,0.1822321]
[1724388321639,1.43476698,60767.0,60766.0,0.1476053]
[1724388321983,1.42376698,60767.0,60766.0,0.1476053]
[1724388322299,1.43076698,60767.0,60766.0,0.1476053]
[1724388322892,1.57908229,60767.0,60766.0,0.1476053]
[1724388323098,1.45629098,60767.0,60766.0,0.1476053]
[1724388325176,1.48210114,60767.0,60766.0,0.1476053]
[1724388326313,1.45629098,60767.0,60766.0,0.1476053]
[1724388327367,1.45629098,60767.0,60766.0,0.0009053]